fUSD/lending_fUSD_20240222
["ID","MTS","AMOUNT","RATE_DAILY","PERIOD"]
[314829784,1708571505767,-514.98277088,0.00036712,2]
[314829785,1708571505776,-516.64698305,0.00036712,2]
[314829786,1708571505786,-500.0,0.00036712,2]
[314829787,1708571505796,-500.0,0.00036712,2]
[314829788,1708571505805,-500.0,0.00036712,2]
[314829789,1708571505815,-500.0,0.00036712,2]
[314829790,1708571505824,-784.63,0.00036712,2]
[314829791,1708571505833,-500.0,0.00036712,2]
[314829792,1708571505843,-500.0,0.00036712,2]
[314829793,1708571505852,-500.0,0.00036712,2]
[314829794,1708571505861,-500.0,0.00036712,2]
[314829795,1708571505870,-500.0,0.00036712,2]
[314829796,1708571505879,-500.0,0.00036712,2]
[314829797,1708571505889,-500.0,0.00036712,2]
[314829798,1708571505898,-500.0,0.00036712,2]
[314829799,1708571505908,-504.29000939,0.00036712,2]
[314829800,1708571505917,-500.0,0.00036712,2]
[314829801,1708571505927,-500.0,0.00036712,2]
[314829802,1708571505936,-500.0,0.00036712,2]
[314829803,1708571505945,-500.0,0.00036712,2]
[314829804,1708571505955,-500.0,0.00036712,2]
[314829805,1708571505965,-513.04126207,0.00036712,2]
[314829806,1708571505974,-514.60174423,0.00036712,2]
[314829807,1708571505983,-500.0,0.00036712,2]
[314829808,1708571505992,-199.7555413,0.00036712,2]
[314829809,1708571506001,-505.68868853,0.00036712,2]
[314829810,1708571506011,-500.0,0.00036712,2]
[314829811,1708571506020,-500.0,0.00036712,2]
[314829812,1708571506029,-500.0,0.00036712,2]
[314829813,1708571506039,-576.93,0.00036712,2]
[314829814,1708571506048,-500.0,0.00036712,2]
[314829815,1708571506057,-500.0,0.00036712,2]
[314829816,1708571506066,-500.0,0.00036712,2]
[314829817,1708571506075,-500.0,0.00036712,2]
[314829818,1708571506085,-500.0,0.00036712,2]
[314829819,1708571506094,-500.0,0.00036712,2]
[314829820,1708571506103,-500.0,0.00036712,2]
[314829821,1708571506113,-511.86180365,0.00036712,2]
[314829822,1708571506122,-500.0,0.00036712,2]
[314829823,1708571506131,-500.0,0.00036712,2]
[314829824,1708571506139,-500.0,0.00036712,2]
[314829825,1708571506148,-500.0,0.00036712,2]
[314829826,1708571506157,-500.0,0.00036712,2]
[314829827,1708571506167,-500.0,0.00036712,2]
[314829828,1708571506176,-500.0,0.00036712,2]
[314829829,1708571506185,-500.0,0.00036712,2]
[314829830,1708571506194,-500.0,0.00036712,2]
[314829831,1708571506203,-500.0,0.00036712,2]
[314829832,1708571506212,-500.0,0.00036712,2]
[314829833,1708571506221,-926.86,0.00036712,2]
[314829834,1708571506230,-208.86482885,0.00036712,2]
[314829835,1708571506239,-500.0,0.00036712,2]
[314829836,1708571506248,-595.40111572,0.00036712,2]
[314829837,1708571506258,-902.85,0.00036712,2]
[314829838,1708571506267,-500.0,0.00036712,2]
[314829839,1708571506277,-500.0,0.00036712,2]
[314829840,1708571506287,-500.0,0.00036712,2]
[314829841,1708571506297,-500.0,0.00036712,2]
[314829842,1708571506306,-621.86,0.00036712,2]
[314829843,1708571506315,-500.0,0.00036712,2]
[314829844,1708571506325,-232.08924781,0.00036712,2]
[314829845,1708571506334,-500.0,0.00036712,2]
[314829846,1708571506343,-500.0,0.00036712,2]
[314829847,1708571506353,-309.78554613,0.00036712,2]
[314829848,1708571506364,-500.0,0.00036712,2]
[314829849,1708571506374,-500.0,0.00036712,2]
[314829850,1708571506384,-500.0,0.00036712,2]
[314829851,1708571506394,-500.0,0.00036712,2]
[314829852,1708571506405,-193.2207658,0.00036712,2]
[314829853,1708571506415,-500.0,0.00036712,2]
[314829854,1708571506425,-500.0,0.00036712,2]
[314829855,1708571506435,-1244.2,0.00036712,2]
[314829856,1708571506445,-500.0,0.00036712,2]
[314829857,1708571506455,-868.83,0.00036712,2]
[314829858,1708571506465,-738.68,0.00036712,2]
[314829859,1708571506475,-500.0,0.00036712,2]
[314829860,1708571506485,-1197.07,0.00036712,2]
[314829861,1708571506495,-500.0,0.00036712,2]
[314829862,1708571506504,-500.0,0.00036712,2]
[314829863,1708571506514,-1081.66,0.00036712,2]
[314829864,1708571506524,-500.0,0.00036712,2]
[314829865,1708571506533,-500.0,0.00036712,2]
[314829866,1708571506543,-746.3,0.00036712,2]
[314829867,1708571506555,-500.0,0.00036712,2]
[314829868,1708571506565,-500.0,0.00036712,2]
[314829869,1708571506574,-500.0,0.00036712,2]
[314829870,1708571506584,-500.0,0.00036712,2]
[314829871,1708571506593,-500.0,0.00036712,2]
[314829872,1708571506603,-243.35246636,0.00036712,2]
[314829873,1708571506612,-766.48,0.00036712,2]
[314829874,1708571506632,-500.0,0.00036712,2]
[314829875,1708571506643,-500.0,0.00036712,2]
[314829876,1708571506653,-500.0,0.00036712,2]
[314829877,1708571506663,-500.0,0.00036712,2]
[314829878,1708571506672,-500.0,0.00036712,2]
[314829879,1708571506681,-639.37,0.00036712,2]
[314829880,1708571506690,-590.44,0.00036712,2]
[314829881,1708571506700,-490.50908581,0.00036712,2]
[314829882,1708571506709,-863.39,0.00036712,2]
[314829883,1708571506718,-500.0,0.00036712,2]
[314829884,1708571506727,-1000.0,0.00036712,7]
[314829885,1708571506737,-500.0,0.00036712,2]
[314829886,1708571506746,-599.33,0.00036712,2]
[314829887,1708571506755,-500.0,0.00036712,2]
[314829888,1708571506764,-374.47719534,0.00036712,2]
[314829889,1708571506773,-500.0,0.00036712,2]
[314829890,1708571506783,-613.73,0.00036712,2]
[314829891,1708571506792,-1052.29,0.00036712,2]
[314829892,1708571506802,-500.0,0.00036712,2]
[314829893,1708571506811,-500.0,0.00036712,2]
[314829894,1708571506820,-561.67860662,0.00036712,2]
[314829895,1708571506830,-397.57129907,0.00036712,2]
[314829896,1708571506839,-885.26,0.00036712,2]
[314829897,1708571506848,-500.0,0.00036712,2]
[314829898,1708571506857,-500.79,0.00036712,2]
[314829899,1708571506866,-500.0,0.00036712,2]
[314829900,1708571506875,-1518.98,0.00036712,2]
[314829901,1708571506884,-572.92,0.00036712,2]
[314829902,1708571506893,-537.4,0.00036712,2]
[314829903,1708571506903,-500.0,0.00036712,2]
[314829904,1708571506911,-500.0,0.00036712,2]
[314829905,1708571506921,-588.98,0.00036712,2]
[314829906,1708571506929,-543.5,0.00036712,2]
[314829907,1708571506938,-504.44504256,0.00036712,2]
[314829908,1708571506947,-1021.19,0.00036712,2]
[314829909,1708571506957,-533.41,0.00036712,2]
[314829910,1708571506966,-804.62,0.00036712,2]
[314829911,1708571506975,-500.0,0.00036712,2]
[314829912,1708571506984,-500.0,0.00036712,2]
[314829913,1708571506993,-500.0,0.00036712,2]
[314829914,1708571507002,-500.0,0.00036712,2]
[314829915,1708571507011,-500.0,0.00036712,2]
[314829916,1708571507020,-500.0,0.00036712,2]
[314829917,1708571507029,-500.0,0.00036712,2]
[314829918,1708571507038,-805.48,0.00036712,2]
[314829919,1708571507133,-585.68,0.00036712,2]
[314829920,1708571507142,-500.0,0.00036712,2]
[314829921,1708571507151,-500.0,0.00036712,2]
[314829922,1708571507159,-793.62,0.00036712,2]
[314829923,1708571507168,-500.0,0.00036712,2]
[314829924,1708571507176,-500.0,0.00036712,2]
[314829925,1708571507185,-1274.16,0.00036712,2]
[314829926,1708571507194,-500.0,0.00036712,2]
[314829927,1708571507202,-1038.93,0.00036712,2]
[314829928,1708571507211,-541.40675257,0.00036712,2]
[314829929,1708571507219,-500.0,0.00036712,2]
[314829930,1708571507228,-665.6,0.00036712,2]
[314829931,1708571507237,-502.22,0.00036712,2]
[314829932,1708571507245,-500.0,0.00036712,2]
[314829933,1708571507255,-500.0,0.00036712,2]
[314829934,1708571507264,-500.0,0.00036712,2]
[314829935,1708571507273,-682.52,0.00036712,2]
[314829936,1708571507283,-508.0073543,0.00036712,2]
[314829937,1708571507292,-821.65,0.00036712,2]
[314829938,1708571507301,-500.0,0.00036712,2]
[314829939,1708571507310,-500.0,0.00036712,2]
[314829940,1708571507319,-500.0,0.00036712,2]
[314829941,1708571507329,-500.0,0.00036712,2]
[314829942,1708571507338,-500.0,0.00036712,2]
[314829943,1708571507347,-500.0,0.00036712,2]
[314829944,1708571507356,-500.0,0.00036712,2]
[314829945,1708571507366,-500.0,0.00036712,2]
[314829946,1708571507375,-500.0,0.00036712,2]
[314829947,1708571507385,-518.0,0.00036712,2]
[314829948,1708571507395,-1428.38,0.00036712,2]
[314829949,1708571507404,-526.06,0.00036712,2]
[314829950,1708571507413,-500.0,0.00036712,2]
[314829951,1708571507422,-1006.8,0.00036712,2]
[314829952,1708571507431,-500.0,0.00036712,2]
[314829953,1708571507441,-504.77,0.00036712,2]
[314829954,1708571507450,-500.0,0.00036712,2]
[314829955,1708571507459,-500.0,0.00036712,2]
[314829956,1708571507469,-500.0,0.00036712,2]
[314829957,1708571507478,-500.0,0.00036712,2]
[314829958,1708571507487,-500.0,0.00036712,2]
[314829959,1708571507496,-1180.83,0.00036712,2]
[314829960,1708571507506,-500.0,0.00036712,2]
[314829961,1708571507515,-500.0,0.00036712,2]
[314829962,1708571507524,-687.65,0.00036712,2]
[314829963,1708571507533,-631.32,0.00036712,2]
[314829964,1708571507542,-500.0,0.00036712,2]
[314829965,1708571507552,-1392.3,0.00036712,2]
[314829966,1708571507561,-500.0,0.00036712,2]
[314829967,1708571507571,-500.0,0.00036712,2]
[314829968,1708571507580,-512.25782909,0.00036712,2]
[314829969,1708571507589,-729.71,0.00036712,2]
[314829970,1708571507598,-500.0,0.00036712,2]
[314829971,1708571507608,-779.53,0.00036712,2]
[314829972,1708571507619,-533.99,0.00036712,2]
[314829973,1708571507629,-500.0,0.00036712,2]
[314829974,1708571507638,-500.0,0.00036712,2]
[314829975,1708571507648,-500.0,0.00036712,2]
[314829976,1708571507658,-500.0,0.00036712,2]
[314829977,1708571507668,-2169.96,0.00036712,2]
[314829978,1708571507677,-500.0,0.00036712,2]
[314829979,1708571507687,-526.77644714,0.00036712,2]
[314829980,1708571507697,-590.37,0.00036712,2]
[314829981,1708571507706,-500.0,0.00036712,2]
[314829982,1708571507716,-1003.2,0.00036712,2]
[314829983,1708571507725,-500.0,0.00036712,2]
[314829984,1708571507733,-500.0,0.00036712,2]
[314829985,1708571507742,-500.0,0.00036712,2]
[314829986,1708571507751,-500.0,0.00036712,2]
[314829987,1708571507760,-500.0,0.00036712,2]
[314829988,1708571507769,-500.0,0.00036712,2]
[314829989,1708571507778,-500.0,0.00036712,2]
[314829990,1708571507787,-500.0,0.00036712,2]
[314829991,1708571507795,-500.0,0.00036712,2]
[314829992,1708571507804,-500.42869284,0.00036712,2]
[314829993,1708571507813,-500.0,0.00036712,2]
[314829994,1708571507822,-500.0,0.00036712,2]
[314829995,1708571507831,-897.85,0.00036712,2]
[314829996,1708571507840,-532.78,0.00036712,2]
[314829997,1708571507850,-794.78,0.00036712,2]
[314829998,1708571507860,-500.0,0.00036712,2]
[314829999,1708571507869,-500.0,0.00036712,2]
[314830000,1708571507877,-500.0,0.00036712,2]
[314830001,1708571507886,-602.81,0.00036712,2]
[314830002,1708571507895,-500.0,0.00036712,2]
[314830003,1708571507904,-349.62818135,0.00036712,2]
[314830004,1708571507913,-500.0,0.00036712,2]
[314830005,1708571507922,-500.0,0.00036712,2]
[314830006,1708571507931,-494.80456773,0.00036712,2]
[314830007,1708571507940,-500.0,0.00036712,2]
[314830008,1708571507949,-500.0,0.00036712,2]
[314830009,1708571507958,-661.35,0.00036712,2]
[314830010,1708571507967,-1000.0,0.00036712,7]
[314830011,1708571507976,-222.53740234,0.00036712,2]
[314830012,1708571507985,-508.03,0.00036712,2]
[314830013,1708571507994,-500.0,0.00036712,2]
[314830014,1708571508003,-500.0,0.00036712,2]
[314830015,1708571508012,-747.96,0.00036712,2]
[314830016,1708571508020,-500.0,0.00036712,2]
[314830017,1708571508029,-500.0,0.00036712,2]
[314830018,1708571508038,-500.0,0.00036712,2]
[314830019,1708571508047,-509.54018765,0.00036712,2]
[314830020,1708571508056,-180.2302902,0.00036712,2]
[314830021,1708571508065,-597.18,0.00036712,2]
[314830022,1708571508075,-500.0,0.00036712,2]
[314830023,1708571508084,-993.12,0.00036712,2]
[314830024,1708571508093,-546.94,0.00036712,2]
[314830025,1708571508102,-500.0,0.00036712,2]
[314830026,1708571508111,-500.0,0.00036712,2]
[314830027,1708571508119,-500.0,0.00036712,2]
[314830028,1708571508128,-500.0,0.00036712,2]
[314830029,1708571508138,-637.26,0.00036712,2]
[314830030,1708571508147,-500.0,0.00036712,2]
[314830031,1708571508156,-664.3,0.00036712,2]
[314830032,1708571508165,-500.0,0.00036712,2]
[314830033,1708571508174,-500.0,0.00036712,2]
[314830034,1708571508183,-579.05,0.00036712,2]
[314830035,1708571508192,-526.67259887,0.00036712,2]
[314830036,1708571508201,-1140.82,0.00036712,2]
[314830037,1708571508210,-500.0,0.00036712,2]
[314830038,1708571508219,-500.0,0.00036712,2]
[314830039,1708571508228,-500.0,0.00036712,2]
[314830040,1708571508237,-825.66,0.00036712,2]
[314830041,1708571508246,-500.0,0.00036712,2]
[314830042,1708571508256,-634.35,0.00036712,2]
[314830043,1708571508265,-612.06,0.00036712,2]
[314830044,1708571508274,-500.0,0.00036712,2]
[314830045,1708571508283,-500.0,0.00036712,2]
[314830046,1708571508292,-1000.0,0.00036712,7]
[314830047,1708571508302,-1557.65,0.00036712,2]
[314830048,1708571508311,-500.0,0.00036712,2]
[314830049,1708571508320,-500.0,0.00036712,2]
[314830050,1708571508330,-861.97,0.00036712,2]
[314830051,1708571508339,-500.0,0.00036712,2]
[314830052,1708571508348,-500.0,0.00036712,2]
[314830053,1708571508358,-500.0,0.00036712,2]
[314830054,1708571508367,-1000.0,0.00036712,7]
[314830055,1708571508376,-549.38,0.00036712,2]
[314830056,1708571508385,-500.0,0.00036712,2]
[314830057,1708571508394,-500.0,0.00036712,2]
[314830058,1708571508403,-500.0,0.00036712,2]
[314830059,1708571508412,-619.07,0.00036712,2]
[314830060,1708571508421,-500.0,0.00036712,2]
[314830061,1708571508431,-500.0,0.00036712,2]
[314830062,1708571508440,-500.0,0.00036712,2]
[314830063,1708571508449,-500.0,0.00036712,2]
[314830064,1708571508458,-848.14,0.00036712,2]
[314830065,1708571508468,-500.0,0.00036712,2]
[314830066,1708571508477,-914.66,0.00036712,2]
[314830067,1708571508486,-500.0,0.00036712,2]
[314830068,1708571508495,-429.389881,0.00036712,2]
[314830069,1708571508504,-500.0,0.00036712,2]
[314830070,1708571508513,-500.0,0.00036712,2]
[314830071,1708571508523,-708.05,0.00036712,2]
[314830072,1708571508532,-500.0,0.00036712,2]
[314830073,1708571508541,-500.0,0.00036712,2]
[314830074,1708571508551,-508.79556699,0.00036712,2]
[314830075,1708571508560,-1023.59,0.00036712,2]
[314830076,1708571508570,-910.54,0.00036712,2]
[314830077,1708571508579,-500.0,0.00036712,2]
[314830078,1708571508588,-793.78,0.00036712,2]
[314830079,1708571508597,-500.0,0.00036712,2]
[314830080,1708571508605,-500.0,0.00036712,2]
[314830081,1708571508615,-500.0,0.00036712,2]
[314830082,1708571508628,-511.42729394,0.00036712,2]
[314830083,1708571508637,-500.0,0.00036712,2]
[314830084,1708571508646,-500.0,0.00036712,2]
[314830085,1708571508654,-748.23,0.00036712,2]
[314830086,1708571508664,-506.74591003,0.00036712,2]
[314830087,1708571508673,-500.0,0.00036712,2]
[314830088,1708571508682,-500.0,0.00036712,2]
[314830089,1708571508691,-312.85766518,0.00036712,2]
[314830090,1708571508701,-500.0,0.00036712,2]
[314830091,1708571508709,-548.7,0.00036712,2]
[314830092,1708571508718,-515.93,0.00036712,2]
[314830093,1708571508727,-500.0,0.00036712,2]
[314830094,1708571508736,-521.6,0.00036712,2]
[314830095,1708571508745,-1492.93,0.00036712,2]
[314830096,1708571508754,-500.0,0.00036712,2]
[314830097,1708571508763,-500.0,0.00036712,2]
[314830098,1708571508772,-500.0,0.00036712,2]
[314830099,1708571508782,-500.0,0.00036712,2]
[314830100,1708571508791,-500.0,0.00036712,2]
[314830101,1708571508800,-500.0,0.00036712,2]
[314830102,1708571508809,-570.87,0.00036712,2]
[314830103,1708571508818,-527.84,0.00036712,2]
[314830104,1708571508827,-500.0,0.00036712,2]
[314830105,1708571508836,-500.0,0.00036712,2]
[314830106,1708571508845,-550.65,0.00036712,2]
[314830107,1708571508854,-508.40922676,0.00036712,2]
[314830108,1708571508863,-500.0,0.00036712,2]
[314830109,1708571508872,-500.0,0.00036712,2]
[314830110,1708571508881,-500.0,0.00036712,2]
[314830111,1708571508890,-500.0,0.00036712,2]
[314830112,1708571508899,-500.0,0.00036712,2]
[314830113,1708571508908,-500.0,0.00036712,2]
[314830114,1708571508917,-500.0,0.00036712,2]
[314830115,1708571508926,-500.0,0.00036712,2]
[314830116,1708571508935,-500.0,0.00036712,2]
[314830117,1708571508944,-500.0,0.00036712,2]
[314830118,1708571508953,-998.09,0.00036712,2]
[314830119,1708571508962,-500.0,0.00036712,2]
[314830120,1708571508971,-1522.9,0.00036712,2]
[314830121,1708571508980,-500.0,0.00036712,2]
[314830122,1708571508988,-500.0,0.00036712,2]
[314830123,1708571508997,-500.0,0.00036712,2]
[314830124,1708571509007,-500.0,0.00036712,2]
[314830125,1708571509016,-755.57,0.00036712,2]
[314830126,1708571509025,-500.0,0.00036712,2]
[314830127,1708571509034,-500.0,0.00036712,2]
[314830128,1708571509044,-500.0,0.00036712,2]
[314830129,1708571509053,-712.79,0.00036712,2]
[314830130,1708571509062,-500.0,0.00036712,2]
[314830131,1708571509072,-500.0,0.00036712,2]
[314830132,1708571509081,-500.0,0.00036712,2]
[314830133,1708571509090,-537.75,0.00036712,2]
[314830134,1708571509100,-500.0,0.00036712,2]
[314830135,1708571509109,-660.33,0.00036712,2]
[314830136,1708571509119,-514.3,0.00036712,2]
[314830137,1708571509128,-871.1,0.00036712,2]
[314830138,1708571509137,-859.65,0.00036712,2]
[314830139,1708571509147,-500.0,0.00036712,2]
[314830140,1708571509156,-500.0,0.00036712,2]
[314830141,1708571509166,-500.0,0.00036712,2]
[314830142,1708571509175,-500.0,0.00036712,2]
[314830143,1708571509184,-1030.56,0.00036712,2]
[314830144,1708571509193,-510.6765225,0.00036712,2]
[314830145,1708571509202,-500.0,0.00036712,2]
[314830146,1708571509210,-794.87,0.00036712,2]
[314830147,1708571509219,-500.0,0.00036712,2]
[314830148,1708571509228,-840.11,0.00036712,2]
[314830149,1708571509237,-500.0,0.00036712,2]
[314830150,1708571509245,-578.4326049,0.00036712,2]
[314830151,1708571509254,-711.79,0.00036712,2]
[314830152,1708571509263,-161.39157969,0.00036712,2]
[314830153,1708571509272,-500.0,0.00036712,2]
[314830154,1708571509281,-500.0,0.00036712,2]
[314830155,1708571509289,-500.0,0.00036712,2]
[314830156,1708571509298,-500.0,0.00036712,2]
[314830157,1708571509307,-513.93134784,0.00036712,2]
[314830158,1708571509317,-1085.16,0.00036712,2]
[314830159,1708571509326,-930.24,0.00036712,2]
[314830160,1708571509335,-1229.4,0.00036712,2]
[314830161,1708571509345,-500.0,0.00036712,2]
[314830162,1708571509354,-641.26,0.00036712,2]
[314830163,1708571509363,-1254.24,0.00036712,2]
[314830164,1708571509372,-500.0,0.00036712,2]
[314830165,1708571509381,-500.0,0.00036712,2]
[314830166,1708571509390,-500.0,0.00036712,2]
[314830167,1708571509399,-708.18,0.00036712,2]
[314830168,1708571509408,-500.0,0.00036712,2]
[314830169,1708571509417,-500.0,0.00036712,2]
[314830170,1708571509426,-500.0,0.00036712,2]
[314830171,1708571509436,-675.52,0.00036712,2]
[314830172,1708571509445,-663.36,0.00036712,2]
[314830173,1708571509454,-1285.49,0.00036712,2]
[314830174,1708571509463,-533.72,0.00036712,2]
[314830175,1708571509473,-500.0,0.00036712,2]
[314830176,1708571509482,-500.0,0.00036712,2]
[314830177,1708571509491,-500.0,0.00036712,2]
[314830178,1708571509500,-500.0,0.00036712,2]
[314830179,1708571509510,-500.0,0.00036712,2]
[314830180,1708571509518,-500.0,0.00036712,2]
[314830181,1708571509528,-972.67,0.00036712,2]
[314830182,1708571509537,-1033.35,0.00036712,2]
[314830183,1708571509546,-686.87,0.00036712,2]
[314830184,1708571509556,-500.0,0.00036712,2]
[314830185,1708571509565,-500.0,0.00036712,2]
[314830186,1708571509574,-500.0,0.00036712,2]
[314830187,1708571509583,-690.5,0.00036712,2]
[314830188,1708571509592,-500.0,0.00036712,2]
[314830189,1708571509601,-1210.72,0.00036712,2]
[314830190,1708571509610,-500.0,0.00036712,2]
[314830191,1708571509622,-500.0,0.00036712,2]
[314830192,1708571509632,-500.0,0.00036712,2]
[314830193,1708571509641,-507.01321814,0.00036712,2]
[314830194,1708571509650,-500.0,0.00036712,2]
[314830195,1708571509659,-1505.51,0.00036712,2]
[314830196,1708571509668,-500.0,0.00036712,2]
[314830197,1708571509677,-735.98,0.00036712,2]
[314830198,1708571509686,-500.0,0.00036712,2]
[314830199,1708571509695,-500.0,0.00036712,2]
[314830200,1708571509705,-500.0,0.00036712,2]
[314830201,1708571509715,-614.0,0.00036712,2]
[314830202,1708571509725,-1393.88,0.00036712,2]
[314830203,1708571509734,-500.0,0.00036712,2]
[314830204,1708571509742,-500.0,0.00036712,2]
[314830205,1708571509751,-500.0,0.00036712,2]
[314830206,1708571509760,-500.0,0.00036712,2]
[314830207,1708571509769,-500.0,0.00036712,2]
[314830208,1708571509778,-500.0,0.00036712,2]
[314830209,1708571509787,-500.0,0.00036712,2]
[314830210,1708571509796,-500.0,0.00036712,2]
[314830211,1708571509806,-602.51,0.00036712,2]
[314830212,1708571509815,-880.15,0.00036712,2]
[314830213,1708571509824,-500.0,0.00036712,2]
[314830214,1708571509833,-500.0,0.00036712,2]
[314830215,1708571509842,-970.4,0.00036712,2]
[314830216,1708571509851,-515.02,0.00036712,2]
[314830217,1708571509860,-500.0,0.00036712,2]
[314830218,1708571509869,-500.0,0.00036712,2]
[314830219,1708571509878,-500.0,0.00036712,2]
[314830220,1708571509888,-500.0,0.00036712,2]
[314830221,1708571509897,-500.0,0.00036712,2]
[314830222,1708571509930,-500.0,0.00036712,2]
[314830223,1708571509939,-201.84937766,0.00036712,2]
[314830224,1708571509947,-3077.14,0.00036712,2]
[314830225,1708571509956,-1740.36,0.00036712,2]
[314830226,1708571509965,-500.0,0.00036712,2]
[314830227,1708571509974,-533.52,0.00036712,2]
[314830228,1708571509983,-609.83,0.00036712,2]
[314830229,1708571509992,-500.0,0.00036712,2]
[314830230,1708571510000,-500.0,0.00036712,2]
[314830231,1708571510009,-500.0,0.00036712,2]
[314830232,1708571510018,-532.10407572,0.00036712,2]
[314830233,1708571510027,-500.0,0.00036712,2]
[314830234,1708571510036,-827.66,0.00036712,2]
[314830235,1708571510045,-2318.43,0.00036712,2]
[314830236,1708571510055,-1488.99,0.00036712,2]
[314830237,1708571510064,-500.0,0.00036712,2]
[314830238,1708571510073,-500.0,0.00036712,2]
[314830239,1708571510082,-2948.11,0.00036712,2]
[314830240,1708571510091,-500.0,0.00036712,2]
[314830241,1708571510100,-500.0,0.00036712,2]
[314830242,1708571510109,-500.0,0.00036712,2]
[314830243,1708571510118,-500.0,0.00036712,2]
[314830244,1708571510128,-500.0,0.00036712,2]
[314830245,1708571510137,-2491.28,0.00036712,2]
[314830246,1708571510146,-500.0,0.00036712,2]
[314830247,1708571510154,-514.71818126,0.00036712,2]
[314830248,1708571510163,-500.0,0.00036712,2]
[314830249,1708571510172,-500.0,0.00036712,2]
[314830250,1708571510181,-500.0,0.00036712,2]
[314830251,1708571510191,-1249.14,0.00036712,2]
[314830252,1708571510200,-500.0,0.00036712,2]
[314830253,1708571510209,-500.0,0.00036712,2]
[314830254,1708571510218,-500.0,0.00036712,2]
[314830255,1708571510227,-500.0,0.00036712,2]
[314830256,1708571510236,-761.14,0.00036712,2]
[314830257,1708571510245,-500.0,0.00036712,2]
[314830258,1708571510254,-8712.42,0.00036712,2]
[314830259,1708571510263,-1331.83,0.00036712,2]
[314830260,1708571510273,-1153.25,0.00036712,2]
[314830261,1708571510282,-500.0,0.00036712,2]
[314830262,1708571510291,-500.0,0.00036712,2]
[314830263,1708571510300,-500.0,0.00036712,2]
[314830264,1708571510309,-1825.02,0.00036712,2]
[314830265,1708571510318,-5593.38,0.00036712,2]
[314830266,1708571510327,-905.27,0.00036712,2]
[314830267,1708571510337,-500.0,0.00036712,2]
[314830268,1708571510346,-500.0,0.00036712,2]
[314830269,1708571510355,-150.0,0.00036712,2]
[314830270,1708571510364,-1481.34,0.00036712,2]
[314830271,1708571510374,-9540.98,0.00036712,2]
[314830272,1708571510383,-500.0,0.00036712,2]
[314830273,1708571510391,-241.21,0.00036712,2]
[314830274,1708571510400,-500.0,0.00036712,2]
[314830275,1708571510410,-1233.59,0.00036712,2]
[314830276,1708571510420,-818.0,0.00036712,2]
[314830277,1708571510430,-3195.85,0.00036712,2]
[314830278,1708571510439,-500.0,0.00036712,2]
[314830279,1708571510452,-500.0,0.00036712,2]
[314830280,1708571510461,-500.0,0.00036712,2]
[314830281,1708571510472,-8159.8,0.00036712,2]
[314830282,1708571510481,-500.0,0.00036712,2]
[314830283,1708571510491,-500.0,0.00036712,2]